[Event "December 5 Late 2023"]
[Site "https://www.chess.com"]
[Date "2023.12.05"]
[Round "1"]
[White "Naroditsky, Daniel"]
[Black "Ferreira, Vitor Hugo Vieira"]
[Result "1-0"]
[Board "3"]
[TimeControl "180+1"]
[WhiteFideId "2026961"]
[BlackFideId "2119765"]
[WhiteElo "3171"]
[BlackElo "2514"]
[WhiteTeam "USA"]
[BlackTeam "BRA"]
[WhiteClock "0:01:20"]
[BlackClock "0:00:08"]

1. e4 {[%clk 0:02:53]}  c5 {[%clk 0:02:59]} 2. Nf3 {[%clk 0:02:53]}  d6 {[%clk 0:02:59]} 3. Bb5+ {[%clk 0:02:53]}  Nd7 {[%clk 0:02:59]} 4. O-O {[%clk 0:02:53]}  Nf6 {[%clk 0:02:58]} 5. Re1 {[%clk 0:02:53]}  a6 {[%clk 0:02:57]} 6. Bf1 {[%clk 0:02:54]}  e6 {[%clk 0:02:54]} 7. c3 {[%clk 0:02:53]}  Be7 {[%clk 0:02:49]} 8. d4 {[%clk 0:02:53]}  O-O {[%clk 0:02:48]} 9. Bd3 {[%clk 0:02:48]}  e5 {[%clk 0:02:42]} 10. d5 {[%clk 0:02:42]}  Re8 {[%clk 0:02:42]} 11. Nbd2 {[%clk 0:02:42]}  Bf8 {[%clk 0:02:41]} 12. Nf1 {[%clk 0:02:42]}  g6 {[%clk 0:02:42]} 13. Ng3 {[%clk 0:02:42]}  Bg7 {[%clk 0:02:42]} 14. a4 {[%clk 0:02:43]}  b6 {[%clk 0:02:42]} 15. h3 {[%clk 0:02:36]}  Ra7 {[%clk 0:02:36]} 16. Be3 {[%clk 0:02:35]}  Kh8 {[%clk 0:02:31]} 17. Qd2 {[%clk 0:02:33]}  Ng8 {[%clk 0:02:31]} 18. Rf1 {[%clk 0:02:28]}  Nf8 {[%clk 0:02:26]} 19. a5 {[%clk 0:02:25]}  b5 {[%clk 0:02:05]} 20. b4 {[%clk 0:02:26]}  Rc7 {[%clk 0:02:04]} 21. c4 {[%clk 0:02:23]}  bxc4 {[%clk 0:02:02]} 22. Bxc4 {[%clk 0:02:23]}  cxb4 {[%clk 0:02:02]} 23. Bb6 {[%clk 0:02:23]}  Nd7 {[%clk 0:01:57]} 24. Bxc7 {[%clk 0:02:23]}  Qxc7 {[%clk 0:01:58]} 25. Qxb4 {[%clk 0:02:23]}  Nc5 {[%clk 0:01:58]} 26. Qb6 {[%clk 0:02:19]}  Qe7 {[%clk 0:01:54]} 27. Rab1 {[%clk 0:02:19]}  f5 {[%clk 0:01:53]} 28. Rfe1 {[%clk 0:02:07]}  Nxe4 {[%clk 0:01:46]} 29. Nxe4 {[%clk 0:02:04]}  fxe4 {[%clk 0:01:46]} 30. Nd2 {[%clk 0:02:03]}  Nf6 {[%clk 0:01:43]} 31. Bxa6 {[%clk 0:02:03]}  Bf5 {[%clk 0:01:27]} 32. Bb5 {[%clk 0:01:48]}  Rf8 {[%clk 0:01:22]} 33. Bc6 {[%clk 0:01:48]}  Nh5 {[%clk 0:00:46]} 34. Nf1 {[%clk 0:01:48]}  Qg5 {[%clk 0:00:42]} 35. Qe3 {[%clk 0:01:32]}  Nf4 {[%clk 0:00:41]} 36. Qg3 {[%clk 0:01:25]}  Qd8 {[%clk 0:00:31]} 37. a6 {[%clk 0:01:23]}  Qa5 {[%clk 0:00:20]} 38. Ra1 {[%clk 0:01:19]}  Ne2+ {[%clk 0:00:14]} 39. Kh2 {[%clk 0:01:19]}  Qxa1 {[%clk 0:00:12]} 40. Rxa1 {[%clk 0:01:20]}  Nxg3 {[%clk 0:00:08]} 41. Nxg3 {[%clk 0:01:20]} 1-0

[Event "December 5 Late 2023"]
[Site "https://www.chess.com"]
[Date "2023.12.05"]
[Round "1"]
[White "Stojanovski, Sandi"]
[Black "Firouzja, Alireza"]
[Result "0-1"]
[Board "4"]
[TimeControl "180+1"]
[WhiteFideId "1403249"]
[BlackFideId "12573981"]
[WhiteElo "2514"]
[BlackElo "3152"]
[WhiteTeam "DEN"]
[BlackTeam "FRA"]
[WhiteClock "0:00:05"]
[BlackClock "0:00:17"]

1. d3 {[%clk 0:03:00]}  e5 {[%clk 0:02:59]} 2. Nf3 {[%clk 0:03:00]}  Nc6 {[%clk 0:02:59]} 3. g3 {[%clk 0:03:01]}  d5 {[%clk 0:03:00]} 4. Bg2 {[%clk 0:03:01]}  Nf6 {[%clk 0:02:58]} 5. O-O {[%clk 0:03:01]}  Be7 {[%clk 0:02:59]} 6. Bg5 {[%clk 0:03:01]}  O-O {[%clk 0:02:58]} 7. Nc3 {[%clk 0:02:59]}  Be6 {[%clk 0:02:57]} 8. e4 {[%clk 0:02:58]}  d4 {[%clk 0:02:56]} 9. Bxf6 {[%clk 0:02:51]}  Bxf6 {[%clk 0:02:56]} 10. Nd5 {[%clk 0:02:52]}  Bxd5 {[%clk 0:02:55]} 11. exd5 {[%clk 0:02:53]}  Qxd5 {[%clk 0:02:55]} 12. Re1 {[%clk 0:02:54]}  Qb5 {[%clk 0:02:53]} 13. Nd2 {[%clk 0:02:51]}  Rae8 {[%clk 0:02:48]} 14. Nc4 {[%clk 0:02:49]}  Na5 {[%clk 0:02:43]} 15. a4 {[%clk 0:02:36]}  Qc5 {[%clk 0:02:30]} 16. Nxa5 {[%clk 0:02:34]}  Qxa5 {[%clk 0:02:30]} 17. Bxb7 {[%clk 0:02:34]}  Rb8 {[%clk 0:02:30]} 18. Qf3 {[%clk 0:02:26]}  Qb4 {[%clk 0:02:24]} 19. Bd5 {[%clk 0:02:16]}  Qxb2 {[%clk 0:02:23]} 20. Bb3 {[%clk 0:02:14]}  Qc3 {[%clk 0:02:19]} 21. Rab1 {[%clk 0:02:10]}  Rb6 {[%clk 0:02:13]} 22. Qd5 {[%clk 0:02:00]}  g6 {[%clk 0:02:06]} 23. Re2 {[%clk 0:01:59]}  Kg7 {[%clk 0:02:06]} 24. Ree1 {[%clk 0:01:55]}  h5 {[%clk 0:01:45]} 25. h4 {[%clk 0:01:54]}  Qb4 {[%clk 0:01:38]} 26. Qc4 {[%clk 0:01:50]}  Qxc4 {[%clk 0:01:23]} 27. Bxc4 {[%clk 0:01:49]}  Rfb8 {[%clk 0:01:24]} 28. Rb3 {[%clk 0:01:42]}  Rxb3 {[%clk 0:01:06]} 29. cxb3 {[%clk 0:01:32]}  Kf8 {[%clk 0:01:05]} 30. Kg2 {[%clk 0:01:32]}  Bg7 {[%clk 0:01:05]} 31. Rc1 {[%clk 0:01:29]}  c6 {[%clk 0:01:03]} 32. Re1 {[%clk 0:01:26]}  Rb7 {[%clk 0:00:54]} 33. f3 {[%clk 0:01:26]}  Rb8 {[%clk 0:00:46]} 34. Re2 {[%clk 0:01:26]}  Bf6 {[%clk 0:00:45]} 35. Rc2 {[%clk 0:01:26]}  Be7 {[%clk 0:00:45]} 36. Re2 {[%clk 0:01:23]}  Bd6 {[%clk 0:00:45]} 37. Kh3 {[%clk 0:01:19]}  Kg7 {[%clk 0:00:44]} 38. Rc2 {[%clk 0:01:17]}  c5 {[%clk 0:00:43]} 39. Re2 {[%clk 0:01:16]}  Rb7 {[%clk 0:00:42]} 40. Re4 {[%clk 0:01:16]}  f5 {[%clk 0:00:38]} 41. Re2 {[%clk 0:01:15]}  Re7 {[%clk 0:00:39]} 42. Kg2 {[%clk 0:01:15]}  Kf6 {[%clk 0:00:40]} 43. Bd5 {[%clk 0:01:12]}  g5 {[%clk 0:00:38]} 44. Kh3 {[%clk 0:00:36]}  Rg7 {[%clk 0:00:34]} 45. Rg2 {[%clk 0:00:28]}  g4+ {[%clk 0:00:21]} 46. Kh2 {[%clk 0:00:23]}  e4 {[%clk 0:00:18]} 47. fxe4 {[%clk 0:00:19]}  f4 {[%clk 0:00:18]} 48. gxf4 {[%clk 0:00:18]}  Bxf4+ {[%clk 0:00:19]} 49. Kg1 {[%clk 0:00:18]}  g3 {[%clk 0:00:18]} 50. e5+ {[%clk 0:00:17]}  Kxe5 {[%clk 0:00:18]} 51. Bf3 {[%clk 0:00:16]}  Be3+ {[%clk 0:00:18]} 52. Kf1 {[%clk 0:00:16]}  Bf2 {[%clk 0:00:17]} 53. Bxh5 {[%clk 0:00:15]}  Rh7 {[%clk 0:00:17]} 54. Bf3 {[%clk 0:00:12]}  Kf4 {[%clk 0:00:17]} 55. Ke2 {[%clk 0:00:12]}  Rxh4 {[%clk 0:00:17]} 56. Be4 {[%clk 0:00:11]}  Rh8 {[%clk 0:00:16]} 57. Rxf2+ {[%clk 0:00:07]}  gxf2 {[%clk 0:00:16]} 58. Kxf2 {[%clk 0:00:08]}  Rh2+ {[%clk 0:00:16]} 59. Kg1 {[%clk 0:00:08]}  Rb2 {[%clk 0:00:16]} 60. Bd5 {[%clk 0:00:08]}  Ke3 {[%clk 0:00:16]} 61. Bc4 {[%clk 0:00:08]}  Kd2 {[%clk 0:00:16]} 62. Kf2 {[%clk 0:00:08]}  Kc3+ {[%clk 0:00:17]} 63. Kf3 {[%clk 0:00:05]}  Rxb3 {[%clk 0:00:17]} 0-1

[Event "December 5 Late 2023"]
[Site "https://www.chess.com"]
[Date "2023.12.05"]
[Round "1"]
[White "Aronian, Levon"]
[Black "Kotyk, Michael"]
[Result "1-0"]
[Board "5"]
[TimeControl "180+1"]
[WhiteFideId "13300474"]
[BlackFideId "16214501"]
[WhiteElo "3115"]
[BlackElo "2513"]
[WhiteTeam "USA"]
[BlackTeam "GER"]
[WhiteClock "0:01:26"]
[BlackClock "0:00:50"]

1. e4 {[%clk 0:03:00]}  e5 {[%clk 0:02:59]} 2. Nf3 {[%clk 0:03:00]}  Nc6 {[%clk 0:02:59]} 3. Bc4 {[%clk 0:02:59]}  Nf6 {[%clk 0:02:59]} 4. Ng5 {[%clk 0:02:58]}  d5 {[%clk 0:02:59]} 5. exd5 {[%clk 0:02:58]}  b5 {[%clk 0:03:00]} 6. Bf1 {[%clk 0:02:56]}  h6 {[%clk 0:03:00]} 7. Nf3 {[%clk 0:02:39]}  Qxd5 {[%clk 0:02:59]} 8. Nc3 {[%clk 0:02:39]}  Qe6 {[%clk 0:03:00]} 9. Bxb5 {[%clk 0:02:38]}  Bd7 {[%clk 0:02:59]} 10. O-O {[%clk 0:02:35]}  Bc5 {[%clk 0:02:50]} 11. Bxc6 {[%clk 0:02:24]}  Bxc6 {[%clk 0:02:40]} 12. d3 {[%clk 0:02:11]}  O-O-O {[%clk 0:02:30]} 13. Be3 {[%clk 0:02:10]}  Bd4 {[%clk 0:01:56]} 14. Qe2 {[%clk 0:02:05]}  Qg4 {[%clk 0:01:48]} 15. h3 {[%clk 0:02:03]}  Qh5 {[%clk 0:01:28]} 16. Rfe1 {[%clk 0:01:50]}  g5 {[%clk 0:01:25]} 17. Ne4 {[%clk 0:01:28]}  Nxe4 {[%clk 0:01:07]} 18. dxe4 {[%clk 0:01:28]}  Qg6 {[%clk 0:00:52]} 19. Bxd4 {[%clk 0:01:27]}  exd4 {[%clk 0:00:51]} 20. Ne5 {[%clk 0:01:26]}  Qe6 {[%clk 0:00:52]} 21. Qa6+ {[%clk 0:01:26]}  Bb7 {[%clk 0:00:51]} 22. Qxe6+ {[%clk 0:01:26]}  fxe6 {[%clk 0:00:50]} 23. Nf7 {[%clk 0:01:26]} 1-0

[Event "December 5 Late 2023"]
[Site "https://www.chess.com"]
[Date "2023.12.05"]
[Round "1"]
[White "Bressy, Theo"]
[Black "Erigaisi Arjun"]
[Result "0-1"]
[Board "8"]
[TimeControl "180+1"]
[WhiteFideId "26022842"]
[BlackFideId "35009192"]
[WhiteElo "2507"]
[BlackElo "3100"]
[WhiteTeam "FRA"]
[BlackTeam "IND"]
[WhiteClock "0:00:16"]
[BlackClock "0:02:25"]

1. e4 {[%clk 0:03:00]}  g6 {[%clk 0:02:58]} 2. Nc3 {[%clk 0:03:00]}  Bg7 {[%clk 0:02:58]} 3. g3 {[%clk 0:03:00]}  d6 {[%clk 0:02:57]} 4. Bg2 {[%clk 0:03:01]}  e5 {[%clk 0:02:57]} 5. d3 {[%clk 0:03:02]}  Ne7 {[%clk 0:02:57]} 6. f4 {[%clk 0:03:02]}  Nbc6 {[%clk 0:02:56]} 7. Nf3 {[%clk 0:03:02]}  Bg4 {[%clk 0:02:55]} 8. h3 {[%clk 0:03:03]}  Bxf3 {[%clk 0:02:55]} 9. Qxf3 {[%clk 0:03:03]}  Nd4 {[%clk 0:02:55]} 10. Qf2 {[%clk 0:03:04]}  Qd7 {[%clk 0:02:56]} 11. Be3 {[%clk 0:03:05]}  c5 {[%clk 0:02:56]} 12. g4 {[%clk 0:02:57]}  b5 {[%clk 0:02:51]} 13. Nd5 {[%clk 0:02:49]}  Nxd5 {[%clk 0:02:47]} 14. exd5 {[%clk 0:02:50]}  exf4 {[%clk 0:02:46]} 15. Bxf4 {[%clk 0:02:47]}  O-O {[%clk 0:02:46]} 16. O-O {[%clk 0:02:44]}  b4 {[%clk 0:02:46]} 17. Rae1 {[%clk 0:02:19]}  Nb5 {[%clk 0:02:45]} 18. b3 {[%clk 0:02:12]}  Rae8 {[%clk 0:02:42]} 19. Qg3 {[%clk 0:02:11]}  Bc3 {[%clk 0:02:34]} 20. Rxe8 {[%clk 0:02:04]}  Rxe8 {[%clk 0:02:35]} 21. Be4 {[%clk 0:02:00]}  Be5 {[%clk 0:02:33]} 22. Bxe5 {[%clk 0:01:42]}  Rxe5 {[%clk 0:02:34]} 23. h4 {[%clk 0:01:43]}  c4 {[%clk 0:02:32]} 24. bxc4 {[%clk 0:01:33]}  Nc3 {[%clk 0:02:32]} 25. Qf3 {[%clk 0:01:20]}  Qe7 {[%clk 0:02:26]} 26. h5 {[%clk 0:01:11]}  Nxe4 {[%clk 0:02:25]} 27. dxe4 {[%clk 0:01:05]}  Rxe4 {[%clk 0:02:26]} 28. hxg6 {[%clk 0:01:05]}  hxg6 {[%clk 0:02:27]} 29. c5 {[%clk 0:00:55]}  f5 {[%clk 0:02:25]} 30. cxd6 {[%clk 0:00:44]}  Rxg4+ {[%clk 0:02:25]} 31. Qxg4 {[%clk 0:00:27]}  Qe3+ {[%clk 0:02:25]} 32. Rf2 {[%clk 0:00:18]}  fxg4 {[%clk 0:02:26]} 33. d7 {[%clk 0:00:16]}  Qe7 {[%clk 0:02:25]} 0-1

[Event "December 5 Late 2023"]
[Site "https://www.chess.com"]
[Date "2023.12.05"]
[Round "1"]
[White "Nihal Sarin"]
[Black "Rodriguez Fontecha, Marcos"]
[Result "1-0"]
[Board "9"]
[TimeControl "180+1"]
[WhiteFideId "25092340"]
[BlackFideId "2256576"]
[WhiteElo "3088"]
[BlackElo "2506"]
[WhiteTeam "IND"]
[BlackTeam "ESP"]
[WhiteClock "0:01:52"]
[BlackClock "0:00:59"]

1. d4 {[%clk 0:03:00]}  d5 {[%clk 0:02:59]} 2. c3 {[%clk 0:03:00]}  Bf5 {[%clk 0:02:59]} 3. Nf3 {[%clk 0:03:00]}  e6 {[%clk 0:02:59]} 4. Bf4 {[%clk 0:03:00]}  Bd6 {[%clk 0:02:59]} 5. Bg3 {[%clk 0:03:00]}  Nf6 {[%clk 0:02:58]} 6. Nbd2 {[%clk 0:03:01]}  c6 {[%clk 0:02:58]} 7. e3 {[%clk 0:03:01]}  O-O {[%clk 0:02:58]} 8. Be2 {[%clk 0:02:53]}  Qc7 {[%clk 0:02:59]} 9. O-O {[%clk 0:02:52]}  Nbd7 {[%clk 0:02:59]} 10. Rc1 {[%clk 0:02:52]}  e5 {[%clk 0:02:59]} 11. dxe5 {[%clk 0:02:52]}  Nxe5 {[%clk 0:03:00]} 12. Nd4 {[%clk 0:02:52]}  Bg6 {[%clk 0:03:00]} 13. c4 {[%clk 0:02:42]}  dxc4 {[%clk 0:03:00]} 14. Nxc4 {[%clk 0:02:43]}  Nxc4 {[%clk 0:03:00]} 15. Bxc4 {[%clk 0:02:43]}  Bxg3 {[%clk 0:02:57]} 16. hxg3 {[%clk 0:02:44]}  Qb6 {[%clk 0:02:55]} 17. Qb3 {[%clk 0:02:42]}  Ne4 {[%clk 0:02:49]} 18. Rfd1 {[%clk 0:02:40]}  Rad8 {[%clk 0:02:45]} 19. a3 {[%clk 0:02:37]}  Nc5 {[%clk 0:02:40]} 20. Qxb6 {[%clk 0:02:30]}  axb6 {[%clk 0:02:41]} 21. f3 {[%clk 0:02:30]}  Na4 {[%clk 0:02:34]} 22. b4 {[%clk 0:02:22]}  Nb2 {[%clk 0:02:30]} 23. Rd2 {[%clk 0:02:22]}  Nxc4 {[%clk 0:02:28]} 24. Rxc4 {[%clk 0:02:23]}  Ra8 {[%clk 0:02:19]} 25. Rc3 {[%clk 0:02:22]}  Rfd8 {[%clk 0:02:20]} 26. Kf2 {[%clk 0:02:19]}  Rd5 {[%clk 0:02:06]} 27. e4 {[%clk 0:02:18]}  Rd7 {[%clk 0:02:05]} 28. Ke3 {[%clk 0:02:18]}  Rad8 {[%clk 0:02:03]} 29. Nb3 {[%clk 0:02:11]}  f6 {[%clk 0:02:00]} 30. Rxd7 {[%clk 0:02:05]}  Rxd7 {[%clk 0:02:01]} 31. g4 {[%clk 0:02:04]}  Kf8 {[%clk 0:01:53]} 32. Nd4 {[%clk 0:02:05]}  Ke7 {[%clk 0:01:51]} 33. a4 {[%clk 0:02:02]}  Bf7 {[%clk 0:01:49]} 34. a5 {[%clk 0:02:01]}  bxa5 {[%clk 0:01:41]} 35. bxa5 {[%clk 0:02:02]}  Rd8 {[%clk 0:01:39]} 36. a6 {[%clk 0:02:00]}  Rb8 {[%clk 0:01:17]} 37. Rxc6 {[%clk 0:01:53]}  bxa6 {[%clk 0:01:15]} 38. Rxa6 {[%clk 0:01:54]}  Rb7 {[%clk 0:01:04]} 39. Nf5+ {[%clk 0:01:52]}  Kf8 {[%clk 0:00:59]} 40. Ra8+ {[%clk 0:01:52]} 1-0

[Event "December 5 Late 2023"]
[Site "https://www.chess.com"]
[Date "2023.12.05"]
[Round "1"]
[White "Reprintsev, Alexander"]
[Black "Duda, Jan-Krzysztof"]
[Result "1-0"]
[Board "14"]
[TimeControl "180+1"]
[WhiteFideId "14100541"]
[BlackFideId "1170546"]
[WhiteElo "2495"]
[BlackElo "3052"]
[WhiteTeam "UKR"]
[BlackTeam "POL"]
[WhiteClock "0:00:13"]
[BlackClock "0:00:00"]

1. e4 {[%clk 0:02:59]}  c5 {[%clk 0:01:01]} 2. b3 {[%clk 0:02:59]}  e5 {[%clk 0:00:59]} 3. Bb2 {[%clk 0:02:59]}  Nc6 {[%clk 0:00:59]} 4. f4 {[%clk 0:02:59]}  exf4 {[%clk 0:00:59]} 5. Qf3 {[%clk 0:02:59]}  Nd4 {[%clk 0:00:55]} 6. Bxd4 {[%clk 0:02:59]}  cxd4 {[%clk 0:00:56]} 7. Qxf4 {[%clk 0:02:59]}  Qf6 {[%clk 0:00:45]} 8. g3 {[%clk 0:02:53]}  g5 {[%clk 0:00:30]} 9. Qf3 {[%clk 0:02:42]}  Bg7 {[%clk 0:00:29]} 10. Bc4 {[%clk 0:02:37]}  h6 {[%clk 0:00:19]} 11. a4 {[%clk 0:02:33]}  d6 {[%clk 0:00:19]} 12. Na3 {[%clk 0:02:25]}  a6 {[%clk 0:00:13]} 13. Bd5 {[%clk 0:02:24]}  Ne7 {[%clk 0:00:13]} 14. Nc4 {[%clk 0:02:24]}  Nxd5 {[%clk 0:00:13]} 15. exd5 {[%clk 0:02:16]}  Qd8 {[%clk 0:00:13]} 16. a5 {[%clk 0:02:08]}  O-O {[%clk 0:00:12]} 17. Ne2 {[%clk 0:02:00]}  d3 {[%clk 0:00:12]} 18. Nc3 {[%clk 0:01:50]}  dxc2 {[%clk 0:00:11]} 19. O-O {[%clk 0:01:46]}  Bh3 {[%clk 0:00:10]} 20. Rfc1 {[%clk 0:01:45]}  g4 {[%clk 0:00:03]} 21. Qf4 {[%clk 0:01:38]}  Qg5 {[%clk 0:00:04]} 22. Ne2 {[%clk 0:01:30]}  Qxf4 {[%clk 0:00:04]} 23. gxf4 {[%clk 0:01:30]}  Bxa1 {[%clk 0:00:04]} 24. Rxa1 {[%clk 0:01:29]}  Rae8 {[%clk 0:00:04]} 25. Kf2 {[%clk 0:01:29]}  Re7 {[%clk 0:00:03]} 26. Rc1 {[%clk 0:01:28]}  Rfe8 {[%clk 0:00:03]} 27. Ne3 {[%clk 0:01:29]}  Rc7 {[%clk 0:00:03]} 28. Nc3 {[%clk 0:01:26]}  Rc5 {[%clk 0:00:02]} 29. b4 {[%clk 0:01:24]}  Rc7 {[%clk 0:00:03]} 30. Rxc2 {[%clk 0:01:25]}  h5 {[%clk 0:00:04]} 31. Kg3 {[%clk 0:01:23]}  Rce7 {[%clk 0:00:03]} 32. Kh4 {[%clk 0:01:21]}  Rxe3 {[%clk 0:00:03]} 33. dxe3 {[%clk 0:01:21]}  Rxe3 {[%clk 0:00:04]} 34. Kxh5 {[%clk 0:01:19]}  g3 {[%clk 0:00:05]} 35. hxg3 {[%clk 0:01:18]}  Bf5 {[%clk 0:00:05]} 36. Rc1 {[%clk 0:01:06]}  Rxg3 {[%clk 0:00:06]} 37. Ne2 {[%clk 0:00:55]}  Rg2 {[%clk 0:00:06]} 38. Nd4 {[%clk 0:00:54]}  Be4 {[%clk 0:00:06]} 39. Rc7 {[%clk 0:00:42]}  Bxd5 {[%clk 0:00:07]} 40. Nf5 {[%clk 0:00:43]}  Rd2 {[%clk 0:00:06]} 41. Kh6 {[%clk 0:00:38]}  Rh2+ {[%clk 0:00:05]} 42. Kg5 {[%clk 0:00:39]}  Kh7 {[%clk 0:00:06]} 43. Kf6 {[%clk 0:00:37]}  Rf2 {[%clk 0:00:05]} 44. Nxd6 {[%clk 0:00:32]}  Rxf4+ {[%clk 0:00:05]} 45. Ke5 {[%clk 0:00:33]}  Rxb4 {[%clk 0:00:06]} 46. Kxd5 {[%clk 0:00:32]}  Kg6 {[%clk 0:00:06]} 47. Rxb7 {[%clk 0:00:30]}  Ra4 {[%clk 0:00:06]} 48. Nc4 {[%clk 0:00:29]}  f5 {[%clk 0:00:07]} 49. Rb6+ {[%clk 0:00:29]}  Kg5 {[%clk 0:00:08]} 50. Rxa6 {[%clk 0:00:29]}  f4 {[%clk 0:00:08]} 51. Ra8 {[%clk 0:00:27]}  f3 {[%clk 0:00:09]} 52. Rf8 {[%clk 0:00:27]}  Kg4 {[%clk 0:00:09]} 53. Kc5 {[%clk 0:00:26]}  Kg3 {[%clk 0:00:09]} 54. Kb5 {[%clk 0:00:26]}  Ra1 {[%clk 0:00:09]} 55. Nd2 {[%clk 0:00:25]}  f2 {[%clk 0:00:08]} 56. Ne4+ {[%clk 0:00:24]}  Kh4 {[%clk 0:00:09]} 57. Nxf2 {[%clk 0:00:23]}  Rb1+ {[%clk 0:00:09]} 58. Ka6 {[%clk 0:00:23]}  Rf1 {[%clk 0:00:08]} 59. Rf3 {[%clk 0:00:18]}  Kh5 {[%clk 0:00:08]} 60. Rf4 {[%clk 0:00:18]}  Kg6 {[%clk 0:00:08]} 61. Nd3 {[%clk 0:00:18]}  Rd1 {[%clk 0:00:08]} 62. Nc5 {[%clk 0:00:15]}  Rc1 {[%clk 0:00:08]} 63. Kb5 {[%clk 0:00:14]}  Kg5 {[%clk 0:00:08]} 64. Rb4 {[%clk 0:00:14]}  Kf5 {[%clk 0:00:06]} 65. a6 {[%clk 0:00:15]}  Rd1 {[%clk 0:00:06]} 66. a7 {[%clk 0:00:14]}  Rd8 {[%clk 0:00:07]} 67. Kb6 {[%clk 0:00:14]}  Ke5 {[%clk 0:00:07]} 68. Nb7 {[%clk 0:00:14]}  Rh8 {[%clk 0:00:06]} 69. Ra4 {[%clk 0:00:13]}  Ra8 {[%clk 0:00:05]} 70. Nc5 {[%clk 0:00:12]}  Kd5 {[%clk 0:00:05]} 71. Kb7 {[%clk 0:00:12]}  Rh8 {[%clk 0:00:05]} 72. a8=Q {[%clk 0:00:12]}  Rxa8 {[%clk 0:00:05]} 73. Kxa8 {[%clk 0:00:12]}  Kxc5 {[%clk 0:00:06]} 74. Rh4 {[%clk 0:00:12]}  Kb5 {[%clk 0:00:07]} 75. Rh6 {[%clk 0:00:12]}  Kc5 {[%clk 0:00:08]} 76. Kb7 {[%clk 0:00:12]}  Kb5 {[%clk 0:00:09]} 77. Rc6 {[%clk 0:00:12]}  Kb4 {[%clk 0:00:09]} 78. Kb6 {[%clk 0:00:12]}  Ka4 {[%clk 0:00:09]} 79. Rc4+ {[%clk 0:00:12]}  Ka3 {[%clk 0:00:10]} 80. Kc5 {[%clk 0:00:12]}  Kb3 {[%clk 0:00:10]} 81. Kd4 {[%clk 0:00:12]}  Kb2 {[%clk 0:00:10]} 82. Rc3 {[%clk 0:00:12]}  Ka2 {[%clk 0:00:10]} 83. Kd3 {[%clk 0:00:13]}  Kb2 {[%clk 0:00:10]} 84. Kd2 {[%clk 0:00:13]}  Ka2 {[%clk 0:00:00]} 85. Kc2 {[%clk 0:00:13]} 1-0

[Event "December 5 Late 2023"]
[Site "https://www.chess.com"]
[Date "2023.12.05"]
[Round "1"]
[White "Lin, Bryan Enming"]
[Black "Bluebaum, Matthias"]
[Result "0-1"]
[Board "16"]
[TimeControl "180+1"]
[WhiteFideId "30987121"]
[BlackFideId "24651516"]
[WhiteElo "2491"]
[BlackElo "3026"]
[WhiteTeam "USA"]
[BlackTeam "GER"]
[WhiteClock "0:00:38"]
[BlackClock "0:01:31"]

1. e4 {[%clk 0:03:00]}  e6 {[%clk 0:03:00]} 2. d4 {[%clk 0:03:00]}  d5 {[%clk 0:03:01]} 3. Nd2 {[%clk 0:03:01]}  c5 {[%clk 0:03:01]} 4. exd5 {[%clk 0:03:00]}  Qxd5 {[%clk 0:03:02]} 5. dxc5 {[%clk 0:03:01]}  Nf6 {[%clk 0:03:02]} 6. Ngf3 {[%clk 0:03:01]}  Qxc5 {[%clk 0:03:02]} 7. Bd3 {[%clk 0:03:01]}  Nbd7 {[%clk 0:03:03]} 8. Qe2 {[%clk 0:03:01]}  Qc7 {[%clk 0:03:04]} 9. c3 {[%clk 0:03:01]}  Be7 {[%clk 0:03:02]} 10. O-O {[%clk 0:03:01]}  O-O {[%clk 0:03:02]} 11. Ne4 {[%clk 0:02:55]}  b6 {[%clk 0:03:01]} 12. Bg5 {[%clk 0:02:52]}  Bb7 {[%clk 0:03:01]} 13. Rfe1 {[%clk 0:02:43]}  Rfe8 {[%clk 0:03:01]} 14. Rad1 {[%clk 0:02:43]}  Rad8 {[%clk 0:03:00]} 15. Bc2 {[%clk 0:02:39]}  a6 {[%clk 0:02:45]} 16. Bh4 {[%clk 0:02:16]}  Nxe4 {[%clk 0:02:38]} 17. Bxe4 {[%clk 0:02:13]}  Bxh4 {[%clk 0:02:34]} 18. Bxb7 {[%clk 0:02:10]}  Bxf2+ {[%clk 0:02:31]} 19. Qxf2 {[%clk 0:02:10]}  Qxb7 {[%clk 0:02:32]} 20. Qh4 {[%clk 0:02:08]}  Nf6 {[%clk 0:02:31]} 21. Rd4 {[%clk 0:01:56]}  Rxd4 {[%clk 0:02:29]} 22. Qxd4 {[%clk 0:01:57]}  b5 {[%clk 0:02:25]} 23. Rf1 {[%clk 0:01:53]}  Qd5 {[%clk 0:02:18]} 24. Qxd5 {[%clk 0:01:47]}  Nxd5 {[%clk 0:02:19]} 25. Kf2 {[%clk 0:01:47]}  Rd8 {[%clk 0:02:18]} 26. Rd1 {[%clk 0:01:46]}  Kf8 {[%clk 0:02:18]} 27. Ne5 {[%clk 0:01:45]}  f6 {[%clk 0:02:13]} 28. Nc6 {[%clk 0:01:44]}  Rc8 {[%clk 0:02:10]} 29. Nd4 {[%clk 0:01:41]}  Kf7 {[%clk 0:02:11]} 30. Kf3 {[%clk 0:01:40]}  Nb6 {[%clk 0:02:05]} 31. Rd2 {[%clk 0:01:28]}  Nc4 {[%clk 0:02:02]} 32. Re2 {[%clk 0:01:28]}  e5 {[%clk 0:02:00]} 33. Nb3 {[%clk 0:01:24]}  a5 {[%clk 0:01:56]} 34. g4 {[%clk 0:01:15]}  a4 {[%clk 0:01:54]} 35. Nc1 {[%clk 0:01:15]}  Rd8 {[%clk 0:01:50]} 36. Ke4 {[%clk 0:01:10]}  Rd1 {[%clk 0:01:44]} 37. Nd3 {[%clk 0:01:09]}  g6 {[%clk 0:01:40]} 38. Rf2 {[%clk 0:00:56]}  Ke7 {[%clk 0:01:34]} 39. b3 {[%clk 0:00:53]}  axb3 {[%clk 0:01:30]} 40. axb3 {[%clk 0:00:53]}  f5+ {[%clk 0:01:30]} 41. gxf5 {[%clk 0:00:51]}  gxf5+ {[%clk 0:01:31]} 42. Rxf5 {[%clk 0:00:38]}  Nd6+ {[%clk 0:01:31]} 0-1

[Event "December 5 Late 2023"]
[Site "https://www.chess.com"]
[Date "2023.12.05"]
[Round "1"]
[White "Pasti, Aron"]
[Black "Matlakov, Maxim"]
[Result "1-0"]
[Board "18"]
[TimeControl "180+1"]
[WhiteFideId "785857"]
[BlackFideId "4168003"]
[WhiteElo "2490"]
[BlackElo "3013"]
[WhiteTeam "HUN"]
[BlackTeam "RUS"]
[WhiteClock "0:00:12"]
[BlackClock "0:00:05"]

1. e4 {[%clk 0:03:00]}  c5 {[%clk 0:02:59]} 2. Nf3 {[%clk 0:03:00]}  e6 {[%clk 0:02:59]} 3. d4 {[%clk 0:03:01]}  cxd4 {[%clk 0:03:00]} 4. Nxd4 {[%clk 0:03:02]}  Nc6 {[%clk 0:03:00]} 5. Nc3 {[%clk 0:03:02]}  Qc7 {[%clk 0:03:01]} 6. Be3 {[%clk 0:03:02]}  a6 {[%clk 0:03:01]} 7. g4 {[%clk 0:03:01]}  h6 {[%clk 0:02:52]} 8. Rg1 {[%clk 0:02:54]}  Nf6 {[%clk 0:02:51]} 9. Qd2 {[%clk 0:02:42]}  Ne5 {[%clk 0:02:27]} 10. g5 {[%clk 0:02:33]}  hxg5 {[%clk 0:02:25]} 11. Bxg5 {[%clk 0:02:33]}  Bb4 {[%clk 0:02:21]} 12. f3 {[%clk 0:02:27]}  Rxh2 {[%clk 0:02:17]} 13. Qxh2 {[%clk 0:01:35]}  Nd3+ {[%clk 0:02:03]} 14. Bxd3 {[%clk 0:01:31]}  Qxh2 {[%clk 0:02:02]} 15. O-O-O {[%clk 0:01:32]}  Qc7 {[%clk 0:01:46]} 16. Nce2 {[%clk 0:01:17]}  b5 {[%clk 0:01:42]} 17. Bh4 {[%clk 0:01:10]}  Nh5 {[%clk 0:01:39]} 18. Rg5 {[%clk 0:00:56]}  g6 {[%clk 0:01:38]} 19. Rg4 {[%clk 0:00:29]}  Bb7 {[%clk 0:01:33]} 20. Ng3 {[%clk 0:00:29]}  Nxg3 {[%clk 0:01:29]} 21. Bxg3 {[%clk 0:00:30]}  Bd6 {[%clk 0:01:28]} 22. Bh4 {[%clk 0:00:22]}  Be5 {[%clk 0:01:24]} 23. Ne2 {[%clk 0:00:20]}  Rc8 {[%clk 0:01:16]} 24. Rh1 {[%clk 0:00:20]}  b4 {[%clk 0:01:11]} 25. Bg5 {[%clk 0:00:20]}  a5 {[%clk 0:00:59]} 26. f4 {[%clk 0:00:20]}  Bg7 {[%clk 0:00:56]} 27. Rh7 {[%clk 0:00:20]}  d5 {[%clk 0:00:17]} 28. e5 {[%clk 0:00:19]}  Bf8 {[%clk 0:00:16]} 29. Nd4 {[%clk 0:00:13]}  Ba6 {[%clk 0:00:14]} 30. Bxa6 {[%clk 0:00:12]}  Qb6 {[%clk 0:00:10]} 31. Bb5+ {[%clk 0:00:12]}  Rc6 {[%clk 0:00:05]} 32. Bxc6+ {[%clk 0:00:12]} 1-0